bitfinex-derivatives/quotes_BNBF0:USTF0_20250708
["timestamp","ask_amount","ask_price","bid_price","bid_amount"]
[1751984422388,1.95631986,660.36,659.73,1.69480141]
[1751984423288,1.69269748,660.35,659.73,1.69480141]
[1751984424287,1.69269748,660.35,659.74,1.69480141]
[1751984424493,1.69269748,660.34,659.75,1.69480141]
[1751984426290,1.69269748,660.33,659.75,1.69480141]
[1751984427290,1.69269748,660.34,659.75,1.69480141]
[1751984428595,1.69269748,660.33,659.75,1.69480141]
[1751984429396,1.69269748,660.33,659.76,1.69480141]
[1751984430300,1.69269748,660.32,659.77,1.69480141]
[1751984430494,1.69269748,660.31,659.77,1.69480141]
[1751984430795,1.69269748,660.31,659.78,1.69480141]
[1751984431395,1.69269748,660.3,659.78,1.69480141]
[1751984432503,1.69269748,660.3,659.79,1.69480141]
[1751984432898,1.69269748,660.31,659.77,1.69480141]
[1751984433199,1.69269748,660.32,659.77,1.69480141]
[1751984433500,1.69269748,660.32,659.78,1.69480141]
[1751984434301,1.69269748,660.32,659.77,1.69480141]
[1751984435298,1.69269748,660.32,659.78,1.69480141]
[1751984436297,1.69269748,660.32,659.77,1.69480141]
[1751984436502,1.69269748,660.32,659.79,1.5]
[1751984436803,0.26362238,660.36,659.79,1.5]
[1751984437004,1.69734248,660.26,659.79,1.5]
[1751984437499,1.69734248,660.31,659.79,1.5]
[1751984438703,1.69734248,660.35,659.81,1.70003291]
[1751984440307,1.69734248,660.34,659.81,1.70003291]
[1751984441308,1.69734248,660.34,659.82,1.70003291]
[1751984442004,1.69734248,660.33,659.82,1.70003291]
[1751984442203,1.69734248,660.34,659.83,1.70003291]
[1751984442507,0.98863824,660.45,659.79,1.5]
[1751984442707,1.69823122,660.4,659.9,1.70009333]
[1751984443304,1.69823122,660.41,659.89,1.70009333]
[1751984443508,1.69823122,660.39,659.91,1.70009333]
[1751984443704,1.69823122,660.4,659.9,1.70009333]
[1751984444308,1.69823122,660.4,659.91,1.70009333]
[1751984445309,1.69823122,660.4,659.9,1.70009333]
[1751984445509,1.69823122,660.4,659.91,1.70009333]
[1751984446009,1.69823122,660.42,659.87,1.70009333]
[1751984446411,1.69823122,660.42,659.88,1.70009333]
[1751984446807,1.69823122,660.42,659.87,1.70009333]
[1751984447406,1.69823122,660.42,659.88,1.70009333]
[1751984450011,1.69823122,660.41,659.88,1.70009333]
[1751984450314,1.69823122,660.42,659.88,1.70009333]
[1751984450511,1.69823122,660.42,659.87,1.70009333]
[1751984452120,0.26359343,660.49,659.84,1.70009333]
[1751984452121,1.69823122,660.41,659.84,1.70009333]
[1751984452321,1.69823122,660.4,659.83,1.70009333]
[1751984452922,1.69823122,660.38,659.85,1.70009333]
[1751984453519,1.69823122,660.35,659.83,1.70009333]
[1751984457724,1.69823122,660.34,659.83,1.70009333]
[1751984457924,1.69823122,660.34,659.84,1.70009333]
[1751984458525,1.69823122,660.31,659.81,1.70009333]
[1751984459822,1.69823122,660.25,659.79,1.5]
[1751984460722,1.69823122,660.24,659.79,1.5]
[1751984461322,1.69823122,660.25,659.79,1.5]
[1751984461730,1.69823122,660.21,659.79,1.5]
[1751984462430,1.69823122,660.22,659.79,1.5]
[1751984463834,1.69823122,660.13,659.79,1.5]
[1751984464433,1.69823122,660.14,659.79,1.5]
[1751984464633,2.26254195,660.25,659.79,1.5]
[1751984464634,1.69823122,660.13,659.79,1.5]
[1751984465533,1.69823122,660.14,659.79,1.5]
[1751984465731,1.69760455,660.14,659.79,1.5]
[1751984466233,1.69760455,660.15,659.79,1.5]
[1751984466433,3.39381292,660.39,659.79,1.5]
[1751984466434,1.69760455,660.16,659.79,1.5]
[1751984467535,1.69760455,660.17,659.79,1.5]
[1751984468836,1.69760455,660.18,659.79,1.5]
[1751984470533,1.69760455,660.19,659.79,1.5]
[1751984471233,1.69760455,660.18,659.79,1.5]
[1751984471434,1.69760455,660.19,659.79,1.5]
[1751984471631,1.69760455,660.18,659.79,1.5]
[1751984472337,1.69760455,660.19,659.79,1.5]
[1751984474435,1.69760455,660.2,659.79,1.5]
[1751984474637,1.69760455,660.19,659.79,1.5]
[1751984476641,1.69760455,660.18,659.79,1.5]
[1751984477239,1.69760455,660.19,659.79,1.5]
[1751984478342,1.69760455,660.2,659.79,1.5]
[1751984479646,1.69760455,660.19,659.79,1.5]
[1751984480343,1.69760455,660.2,659.79,1.5]
[1751984480547,1.69760455,660.19,659.79,1.5]
[1751984480948,1.69760455,660.21,659.79,1.5]
[1751984481549,1.69760455,660.2,659.79,1.5]
[1751984483049,1.69760455,660.21,659.79,1.5]
[1751984483548,1.69760455,660.22,659.79,1.5]
[1751984484750,1.69760455,660.18,659.79,1.5]
[1751984485452,1.69760455,660.19,659.79,1.5]
[1751984487254,1.69760455,660.2,659.79,1.5]
[1751984489355,1.69760455,660.21,659.79,1.5]
[1751984489855,1.69760455,660.22,659.79,1.5]
[1751984490950,1.69760455,660.25,659.79,1.5]
[1751984491151,1.69760455,660.26,659.79,1.5]
[1751984492354,1.69760455,660.27,659.79,1.5]
[1751984492855,1.69760455,660.26,659.79,1.5]
[1751984493555,1.69760455,660.33,659.79,1.5]
[1751984494155,1.69760455,660.41,659.79,1.5]
[1751984494559,1.69760455,660.42,659.49,1.7003948]
[1751984495656,1.69760455,660.42,659.27,0.26371928]
[1751984495657,1.69760455,660.41,659.48,1.7003948]
[1751984497757,1.69760455,660.41,659.49,1.345]
[1751984499762,1.69760455,660.35,659.49,1.345]
[1751984501164,1.69760455,660.29,659.5,1.7003948]
[1751984502759,1.69760455,660.28,659.5,1.7003948]
[1751984502962,1.69760455,660.29,659.51,1.7003948]
[1751984503363,1.69760455,660.28,659.52,1.7003948]
[1751984503864,1.69760455,660.27,659.52,1.7003948]
[1751984504263,1.69760455,660.26,659.52,1.7003948]
[1751984505766,1.69760455,660.25,659.53,1.7003948]
[1751984506167,1.69760455,660.27,659.51,1.7003948]
[1751984506367,1.69760455,660.26,659.52,1.7003948]
[1751984506568,1.69760455,660.25,659.53,1.7003948]
[1751984507670,1.69760455,660.24,659.53,1.7003948]
[1751984507874,1.69760455,660.24,659.54,1.7003948]
[1751984508373,1.69760455,660.23,659.55,1.7003948]
[1751984508674,1.69760455,660.24,659.56,1.7003948]
[1751984509375,1.69760455,660.23,659.56,1.7003948]
[1751984509976,1.69760455,660.32,659.65,1.7003948]
[1751984510476,1.69760455,660.31,659.66,1.7003948]
[1751984512378,1.69760455,660.3,659.67,1.7003948]
[1751984512980,1.69760455,660.29,659.66,1.7003948]
[1751984513379,1.69760455,660.29,659.67,1.7003948]
[1751984513879,1.69760455,660.28,659.66,1.7003948]
[1751984514382,1.69760455,660.28,659.67,1.7003948]
[1751984515185,1.69760455,660.28,659.66,1.7003948]
[1751984515481,1.69760455,660.27,659.67,1.7003948]
[1751984515681,1.69760455,660.24,659.72,1.7003948]
[1751984515882,0.26359343,660.49,659.7,1.7003948]
[1751984515883,1.69760455,660.25,659.7,1.7003948]
[1751984516486,1.69760455,660.25,659.71,1.7003948]
[1751984517387,1.69760455,660.24,659.71,1.7003948]
[1751984518287,1.69760455,660.23,659.72,1.7003948]
[1751984519284,1.69760455,660.23,659.73,1.7003948]
[1751984519584,1.69760455,660.23,659.72,1.7003948]
[1751984521586,1.69760455,660.23,659.73,1.7003948]
[1751984521791,1.69760455,660.23,659.72,1.7003948]
[1751984523788,1.69760455,660.24,659.71,1.7003948]
[1751984524591,1.69760455,660.23,659.7,1.7003948]
[1751984525793,1.69760455,660.23,659.45,3.38736166]
[1751984525794,1.69760455,660.22,659.71,1.7003948]
[1751984527194,1.69760455,660.22,659.72,1.556]
[1751984529496,1.69760455,660.23,659.72,1.556]
[1751984533495,1.69760455,660.24,659.72,1.556]
[1751984533699,1.69760455,660.23,659.72,1.556]
[1751984536799,1.69760455,660.26,659.73,1.7003948]
[1751984537603,1.69760455,660.3,659.78,1.7003948]
[1751984539604,1.69760455,660.3,659.77,1.7003948]
[1751984540606,1.69760455,660.31,659.77,1.7003948]
[1751984541603,1.69760455,660.31,659.76,1.7003948]
[1751984544005,1.69760455,660.31,659.77,1.7003948]
[1751984544808,1.69760455,660.31,659.76,1.7003948]
[1751984545506,1.69760455,660.3,659.78,1.7003948]
[1751984545806,1.69760455,660.31,659.76,1.7003948]
[1751984548413,1.69760455,660.3,659.77,1.7003948]
[1751984550411,1.69760455,660.29,659.78,1.7003948]
[1751984551217,1.69760455,660.26,659.74,1.7003948]
[1751984551418,1.69760455,660.2,659.72,1.556]
[1751984552117,1.69760455,660.19,659.72,1.556]
[1751984555116,1.69760455,660.2,659.72,1.556]
[1751984555924,1.69760455,660.19,659.72,1.556]
[1751984561427,1.69760455,660.18,659.72,1.556]
[1751984562132,1.69760455,660.18,659.68,1.7003948]
[1751984563428,1.69760455,660.19,659.67,1.7003948]
[1751984564330,1.69760455,660.19,659.68,1.7003948]
[1751984564534,1.69760455,660.18,659.69,1.7003948]
[1751984565034,1.69929042,660.18,659.69,1.70129888]
[1751984565430,1.69929042,660.18,659.7,1.689]
[1751984565631,1.69929042,660.17,659.7,3.39029888]
[1751984565834,1.69929042,660.18,659.7,1.689]
[1751984566436,1.69929042,660.17,659.7,1.689]
[1751984567137,1.69929042,660.18,659.7,3.39029888]
[1751984567538,1.69929042,660.17,659.7,3.39029888]
[1751984567738,1.69929042,660.14,659.7,1.689]
[1751984570535,0.9893877,660.26,659.7,1.689]
[1751984570735,1.69963974,660.14,659.7,1.689]
[1751984572139,1.69963974,660.15,659.7,1.689]
[1751984573135,1.69963974,660.14,659.7,1.689]
[1751984574039,0.98940474,660.25,659.7,1.689]
[1751984574040,1.69963974,660.13,659.7,1.689]
[1751984574440,1.69963974,660.12,659.7,1.689]
[1751984579451,1.69963974,660.13,659.7,1.689]
[1751984579742,1.69963974,660.12,659.7,1.689]
[1751984581049,0.98918349,660.23,659.7,1.689]
[1751984581050,1.69963974,660.14,659.7,1.689]
[1751984581247,1.69963974,660.15,659.7,1.689]
[1751984581744,1.69963974,660.17,659.7,1.689]
[1751984582455,1.69963974,660.2,659.7,1.689]
[1751984582652,1.69963974,660.21,659.7,1.689]
[1751984586356,1.69963974,660.2,659.7,1.689]
[1751984587957,1.69963974,660.19,659.7,1.689]
[1751984589154,1.69963974,660.18,659.7,1.689]
[1751984590057,1.69963974,660.19,659.7,1.689]
[1751984590654,1.69963974,660.18,659.7,1.689]
[1751984591359,1.69963974,660.19,659.7,1.689]
[1751984593661,0.98918349,660.31,659.7,1.689]
[1751984593861,1.69874485,660.19,659.7,1.689]
[1751984595359,1.69874485,660.2,659.7,1.689]
[1751984595964,1.69874485,660.26,659.72,1.70065439]
[1751984597265,1.69874485,660.25,659.72,1.70065439]
[1751984597461,1.69874485,660.26,659.72,1.70065439]
[1751984597861,1.69874485,660.25,659.72,1.70065439]
[1751984598967,1.69874485,660.25,659.73,1.70065439]
[1751984600568,1.69874485,660.25,659.74,1.70065439]
[1751984601164,1.69874485,660.25,659.73,1.70065439]
[1751984601368,1.69874485,660.25,659.74,1.70065439]
[1751984601871,1.69874485,660.26,659.74,1.70065439]
[1751984602069,1.69874485,660.26,659.75,1.70065439]
[1751984602570,1.69874485,660.32,659.7,1.689]
[1751984604166,1.69874485,660.31,659.7,1.689]
[1751984606471,1.69874485,660.31,659.69,1.70065439]
[1751984608472,1.69874485,660.31,659.7,1.70065439]
[1751984609475,1.69874485,660.3,659.7,1.70065439]
[1751984609872,1.69874485,660.31,659.7,1.70065439]
[1751984610474,1.69874485,660.31,659.71,1.573]
[1751984611175,1.69874485,660.3,659.71,1.573]
[1751984611877,1.69874485,660.34,659.73,1.70065439]
[1751984612477,1.69874485,660.3,659.79,1.70065439]
[1751984613480,1.69874485,660.31,659.78,1.70065439]
[1751984614882,1.69874485,660.29,659.81,1.70065439]
[1751984615382,1.69874485,660.3,659.8,1.70065439]
[1751984618281,1.69874485,660.3,659.79,1.70065439]
[1751984618981,1.69874485,660.3,659.8,1.70065439]
[1751984619285,1.69874485,660.3,659.79,1.70065439]
[1751984619587,1.69874485,660.31,659.78,1.70065439]
[1751984620288,1.69874485,660.31,659.79,1.70065439]
[1751984620484,1.69874485,660.31,659.78,1.70065439]
[1751984621989,1.69874485,660.4,659.71,1.573]
[1751984622485,1.69874485,660.3,659.77,1.70065439]
[1751984622685,1.69874485,660.3,659.71,1.573]
[1751984622686,1.69874485,660.29,659.76,1.70065439]
[1751984624986,1.69874485,660.3,659.76,1.70065439]
[1751984625390,1.69874485,660.3,659.75,1.70065439]
[1751984625590,1.69874485,660.3,659.76,1.70065439]
[1751984625885,1.69874485,660.3,659.75,1.70065439]
[1751984626488,0.98929163,660.42,659.71,1.573]
[1751984626489,1.69874485,660.28,659.71,1.573]
[1751984626691,1.69874485,660.22,659.71,1.573]
[1751984626986,1.69874485,660.18,659.71,1.573]
[1751984633898,1.69874485,660.19,659.71,1.573]
[1751984634299,1.69874485,660.2,659.71,1.573]
[1751984634799,1.69874485,660.19,659.71,1.573]
[1751984636502,1.69874485,660.18,659.71,1.573]
[1751984641401,1.69874485,660.18,659.62,1.70065439]
[1751984641907,1.69874485,660.18,659.63,1.70065439]
[1751984643007,1.69874485,660.17,659.66,1.70065439]
[1751984643302,1.69874485,660.17,659.65,1.70065439]
[1751984643506,1.69874485,660.18,659.64,1.70065439]
[1751984643706,0.26368231,660.22,659.63,1.70065439]
[1751984643707,1.69874485,660.16,659.63,1.70065439]
[1751984644207,1.69874485,660.15,659.62,1.70065439]
[1751984644508,1.69874485,660.14,659.63,3.86065439]
[1751984648407,1.69874485,660.15,659.63,2.16]
[1751984648607,1.69874485,660.17,659.63,2.16]
[1751984649008,1.69874485,660.15,659.63,2.16]
[1751984649308,1.69874485,660.07,659.63,2.16]
[1751984649808,1.69874485,660.08,659.63,2.16]
[1751984651208,1.69874485,660.09,659.63,2.16]
[1751984652312,1.69874485,660.08,659.63,2.16]
[1751984652708,1.69874485,660.01,659.63,2.16]
[1751984652906,1.69874485,659.97,659.63,2.16]
[1751984653106,1.69874485,659.98,659.63,2.16]
[1751984653311,1.69874485,659.99,659.63,2.16]
[1751984654407,1.69874485,660.01,659.63,2.16]
[1751984655313,1.69874485,660.02,659.63,2.16]
[1751984655809,1.69874485,660.06,659.63,2.16]
[1751984656213,1.69874485,660.07,659.63,2.16]
[1751984657315,1.69874485,660.09,659.63,2.16]
[1751984658119,1.69874485,660.05,659.63,2.16]
[1751984658313,1.69874485,660.06,659.63,2.16]
[1751984659917,1.69874485,660.07,659.63,2.16]
[1751984660120,1.69874485,660.1,659.63,2.16]
[1751984661320,1.69874485,660.11,659.63,2.16]
[1751984661621,1.69874485,660.13,659.63,2.16]
[1751984662221,1.69874485,660.14,659.63,2.16]
[1751984663928,1.69874485,660.17,659.63,2.16]
[1751984666024,1.69874485,660.2,659.63,2.16]
[1751984670427,1.69874485,660.19,659.63,2.16]
[1751984670632,1.69874485,660.16,659.63,2.16]
[1751984671432,0.98566241,660.15,659.63,2.16]
[1751984671634,1.69874485,660.13,659.63,2.16]
[1751984671833,1.69874485,660.12,659.63,2.16]
[1751984672128,1.69874485,660.11,659.63,2.16]
[1751984672326,1.69874485,660.07,659.63,2.16]
[1751984672528,1.69874485,660.06,659.63,2.16]
[1751984673129,1.69874485,660.07,659.63,2.16]
[1751984673528,1.69874485,660.04,659.63,2.16]
[1751984673731,1.69874485,660.05,659.63,2.16]
[1751984674335,1.69874485,660.04,659.63,2.16]
[1751984674633,1.69874485,660.03,659.63,2.16]
[1751984675033,1.69874485,659.97,659.63,2.16]
[1751984675333,1.69874485,659.98,659.63,2.16]
[1751984676532,1.69874485,659.97,659.63,2.16]
[1751984676930,3.24717608,660.1,659.63,2.16]
[1751984676931,1.69874485,659.96,659.63,2.16]
[1751984677432,1.69874485,659.97,659.63,2.16]
[1751984678234,1.69874485,659.98,659.63,2.16]
[1751984678437,1.69874485,659.97,659.63,2.16]
[1751984679837,1.69874485,659.98,659.63,2.16]
[1751984681033,0.98417533,659.97,659.63,2.16]
[1751984681237,1.69874485,659.96,659.63,2.16]
[1751984681639,1.69874485,659.88,659.63,2.16]
[1751984682241,0.98417533,660.01,659.63,2.16]
[1751984682242,1.69874485,659.89,659.63,2.16]
[1751984683045,1.69874485,659.86,659.63,2.16]
[1751984683245,1.69874485,659.87,659.63,2.16]
[1751984683640,0.26368231,660.22,659.63,2.16]
[1751984683641,1.69874485,659.84,659.63,2.16]
[1751984684444,1.69874485,659.85,659.63,2.16]
[1751984685243,1.69874485,659.86,659.63,2.16]
[1751984685445,1.69874485,659.85,659.63,2.16]
[1751984685742,1.69874485,659.82,659.63,2.16]
[1751984686241,1.69874485,659.83,659.63,2.16]
[1751984686445,1.69874485,659.82,659.63,2.16]
[1751984687243,1.69874485,659.83,659.63,2.16]
[1751984688243,1.69874485,659.84,659.63,2.16]
[1751984690749,1.69874485,659.83,659.63,2.16]
[1751984691145,1.69874485,659.84,659.63,2.16]
[1751984692245,1.69874485,659.85,659.63,2.16]
[1751984695750,1.69874485,659.84,659.63,2.16]
[1751984696149,1.69874485,659.85,659.63,2.16]
[1751984696346,2.26254195,659.96,659.63,2.16]
[1751984696347,1.69874485,659.84,659.63,2.16]
[1751984696544,1.69874485,659.84,659.06,0.26380924]
[1751984697045,1.69874485,659.85,659.06,0.26380924]
[1751984699149,1.69874485,659.86,659.06,0.26380924]
[1751984699348,1.69874485,659.85,659.06,0.26380924]
[1751984699851,1.69874485,659.85,659.07,1.994]
[1751984701949,1.69874485,659.86,659.07,1.994]
[1751984702150,1.69874485,659.85,659.07,1.994]
[1751984703755,1.69874485,659.84,659.07,1.994]
[1751984703953,1.69874485,659.85,659.07,1.994]
[1751984704353,1.69874485,659.84,659.07,1.994]
[1751984704856,1.69874485,659.81,659.07,1.994]
[1751984705451,1.69874485,659.8,659.07,1.994]
[1751984707155,1.69874485,659.79,659.07,1.994]
[1751984708357,1.69874485,659.78,659.07,1.994]
[1751984710056,1.69874485,659.79,659.07,1.994]
[1751984710258,1.69874485,659.78,659.07,1.994]
[1751984710658,1.69874485,659.79,659.07,1.994]
[1751984711356,1.69874485,659.78,659.07,1.994]
[1751984714562,1.69874485,659.77,659.07,1.994]
[1751984715860,1.69874485,659.78,659.07,1.994]
[1751984717360,1.69874485,659.77,659.07,1.994]
[1751984718467,1.69874485,659.78,659.07,1.994]
[1751984719165,1.69874485,659.77,659.07,1.994]
[1751984719562,1.69874485,659.78,659.07,1.994]
[1751984720161,1.69874485,659.77,659.07,1.994]
[1751984721365,1.69874485,659.76,659.07,1.994]
[1751984723265,1.69874485,659.75,659.07,1.994]
[1751984724463,1.69874485,659.74,659.07,1.994]
[1751984725263,1.69874485,659.73,659.07,1.994]
[1751984726267,1.69874485,659.72,659.07,1.994]
[1751984727268,1.69874485,659.71,659.07,1.994]
[1751984728269,1.69874485,659.7,659.07,1.994]
[1751984728466,1.69874485,659.69,659.07,1.994]
[1751984729165,1.69874485,659.68,659.07,1.994]
[1751984730268,1.69874485,659.67,659.07,1.994]
[1751984730569,1.69874485,659.68,659.07,1.994]
[1751984731165,1.69874485,659.66,659.07,1.994]
[1751984732265,1.69874485,659.65,659.07,1.994]
[1751984733066,1.69874485,659.66,659.07,1.994]
[1751984733266,1.69874485,659.64,659.07,1.994]
[1751984733970,1.69874485,659.65,659.07,1.994]
[1751984734168,1.69874485,659.64,659.07,1.994]
[1751984735173,1.69874485,659.63,659.07,1.994]
[1751984735374,1.69874485,659.62,659.07,1.994]
[1751984735576,1.69874485,659.63,659.07,1.994]
[1751984737175,1.69874485,659.62,659.07,3.69465439]
[1751984737575,0.98222417,659.74,659.07,1.994]
[1751984737576,1.69874485,659.63,659.07,1.994]
[1751984737872,1.69874485,659.64,659.07,1.994]
[1751984738373,1.69874485,659.63,659.07,3.69465439]
[1751984738878,0.98222417,659.76,659.07,3.69465439]
[1751984738879,1.69874485,659.65,659.09,1.70065439]
[1751984739173,1.69874485,659.63,659.1,1.70065439]
[1751984739373,1.69874485,659.63,659.11,1.70065439]
[1751984740277,1.69874485,659.62,659.12,1.70065439]
[1751984741276,1.69874485,659.61,659.13,1.70065439]
[1751984741774,1.69874485,659.61,658.99,2.52213837]
[1751984741775,1.69874485,659.61,659.12,1.70065439]
[1751984741975,1.69874485,659.62,659.12,1.70065439]
[1751984742276,1.69874485,659.61,659.13,1.70065439]
[1751984743382,1.69874485,659.6,659.13,1.70065439]
[1751984743577,1.69874485,659.6,659.14,2.05]
[1751984743977,1.69874485,659.6,659.14,3.75065439]
[1751984746686,1.69874485,659.58,659.15,1.70065439]
[1751984747086,1.69874485,659.58,659.16,1.70065439]
[1751984747286,1.69874485,659.59,659.15,1.70065439]
[1751984749385,1.69874485,659.61,659.14,2.05]
[1751984749588,1.69874485,659.62,659.14,2.05]
[1751984750287,1.69874485,659.69,659.2,1.70065439]
[1751984751185,1.69874485,659.7,659.2,1.70065439]
[1751984751988,1.69874485,659.7,659.21,1.70065439]
[1751984752288,1.69874485,659.71,659.2,1.70065439]
[1751984752988,1.69874485,659.71,659.19,1.70065439]
[1751984753184,1.69874485,659.72,659.19,1.70065439]
[1751984753385,1.69874485,659.72,659.18,1.70065439]
[1751984753984,1.69874485,659.72,659.14,2.05]
[1751984753985,1.69874485,659.72,659.19,1.70065439]
[1751984754384,1.69874485,659.73,659.19,1.70065439]
[1751984754588,1.69874485,659.72,659.19,1.70065439]
[1751984755285,1.69874485,659.73,659.19,1.70065439]
[1751984755686,1.69874485,659.72,659.18,1.70065439]
[1751984758289,1.69874485,659.72,659.17,1.70065439]
[1751984759292,1.69874485,659.71,659.2,1.70065439]
[1751984760593,1.69874485,659.7,659.2,1.70065439]
[1751984760893,1.69874485,659.71,659.2,1.70065439]
[1751984761293,1.69874485,659.71,659.19,1.70065439]
[1751984762991,1.69874485,659.7,659.2,1.70065439]
[1751984763194,1.69874485,659.71,659.21,1.70065439]
[1751984764296,1.69874485,659.71,659.2,1.70065439]
[1751984768295,1.69874485,659.71,659.19,1.70065439]
[1751984768496,1.69874485,659.71,659.2,1.70065439]
[1751984770599,1.69874485,659.72,659.21,1.70065439]
[1751984771003,1.69874485,659.73,659.2,1.70065439]
[1751984771703,1.69874485,659.8,659.26,1.70065439]
[1751984772099,1.69874485,659.79,659.26,1.70065439]
[1751984772303,1.69874485,659.8,659.26,1.70065439]
[1751984773399,1.69874485,659.8,659.25,1.70065439]
[1751984774400,1.69874485,659.8,659.26,1.70065439]
[1751984774604,1.69874485,659.81,659.24,1.70065439]
[1751984775702,0.98796421,659.93,659.24,1.70065439]
[1751984775703,1.69874485,659.82,659.24,1.70065439]
[1751984776107,1.69874485,659.85,659.27,1.70065439]
[1751984776304,1.69874485,659.86,659.27,1.70065439]
[1751984777105,1.69874485,659.86,659.14,4.30824111]
[1751984777106,1.69874485,659.86,659.26,1.70065439]
[1751984777409,1.69874485,659.92,659.31,1.70065439]
[1751984777604,1.69874485,659.93,659.32,1.70065439]
[1751984777909,1.69874485,659.92,659.31,1.70065439]
[1751984778106,1.69874485,659.93,659.32,1.70065439]
[1751984778409,1.69874485,659.92,659.31,1.70065439]
[1751984778709,1.69874485,659.93,659.31,1.70065439]
[1751984779107,1.69874485,659.93,659.3,1.70065439]
[1751984779310,1.69874485,659.94,659.3,1.70065439]
[1751984780413,1.69874485,659.94,659.29,1.70065439]
[1751984781512,1.69874485,659.95,659.28,1.70065439]
[1751984781914,1.69874485,659.95,659.27,1.70065439]
[1751984782610,1.69874485,659.95,659.28,1.70065439]
[1751984783710,1.69874485,659.94,659.27,1.70065439]
[1751984784316,1.69874485,659.95,659.26,1.70065439]
[1751984784516,1.69874485,659.94,659.26,1.70065439]
[1751984785419,1.69874485,659.95,659.26,1.70065439]
[1751984785616,1.69874485,659.94,659.27,1.70065439]
[1751984785919,1.69874485,659.96,659.24,1.70065439]
[1751984786619,1.69874485,659.96,659.25,1.70065439]
[1751984787916,1.69874485,659.97,659.25,1.70065439]
[1751984789220,1.69874485,659.97,659.26,1.70065439]
[1751984790316,1.69874485,659.98,659.25,1.70065439]
[1751984790716,1.69874485,659.97,659.25,1.70065439]
[1751984790916,1.69874485,659.98,659.25,1.70065439]
[1751984791720,1.69874485,660.03,659.28,1.70065439]
[1751984792320,1.69874485,660.01,659.31,1.70065439]
[1751984792520,1.69874485,660.02,659.29,1.70065439]
[1751984793321,1.69874485,660.03,659.29,1.70065439]
[1751984793521,1.69874485,660.02,659.29,1.70065439]
[1751984794118,1.69874485,660.02,659.3,1.70065439]
[1751984794321,1.69874485,660.03,659.3,1.70065439]
[1751984794521,1.69874485,660.03,659.29,1.70065439]
[1751984794923,1.69874485,660.02,659.3,1.70065439]
[1751984795630,1.69874485,660.07,659.34,1.70065439]
[1751984796121,1.69874485,660.07,659.35,1.70065439]
[1751984796320,1.69874485,660.06,659.35,1.70065439]
[1751984796520,0.98540846,660.2,659.2,2.25824111]
[1751984796521,1.69874485,660.07,659.34,1.70065439]
[1751984798125,1.69874485,660.08,659.33,1.70065439]
[1751984798826,1.69874485,660.07,659.34,1.70065439]
[1751984800627,1.69874485,660.07,659.35,1.70065439]
[1751984802422,1.69874485,660.06,659.36,1.70065439]
[1751984803426,1.69874485,660.06,659.37,1.552]
[1751984805122,1.69874485,660.06,659.37,3.25265439]
[1751984805827,1.69874485,660.06,659.37,1.552]
[1751984806026,1.69874485,660.06,659.37,3.25265439]
[1751984806425,1.69874485,660.06,659.37,1.552]
[1751984807225,1.69874485,660.06,659.37,3.25265439]
[1751984808126,1.69874485,660.05,659.39,1.70065439]
[1751984808330,1.69874485,660.04,659.39,1.70065439]
[1751984809231,1.69874485,660.04,659.4,1.70065439]
[1751984809431,1.69874485,660.04,659.39,1.70065439]
[1751984810331,1.69874485,660.03,659.4,1.70065439]
[1751984810629,1.69874485,660.04,659.39,1.70065439]
[1751984815534,1.69874485,660.04,659.38,1.70065439]
[1751984815730,1.69874485,660.04,659.39,1.70065439]
[1751984816233,1.69874485,660.03,659.39,1.70065439]
[1751984817234,1.69874485,660.03,659.38,1.70065439]
[1751984817631,1.69874485,660.04,659.38,1.70065439]
[1751984818236,1.69874485,660.03,659.38,1.70065439]
[1751984820539,1.69874485,660.03,659.39,1.70065439]
[1751984821538,1.69874485,660.02,659.39,1.70065439]
[1751984822339,1.69874485,660.02,659.4,1.70065439]
[1751984822939,1.69874485,660.03,659.38,1.70065439]
[1751984823434,1.69874485,660.03,659.39,1.70065439]
[1751984823635,1.69874485,660.03,659.38,1.70065439]
[1751984823840,1.69874485,660.03,659.39,1.70065439]
[1751984824040,1.69874485,660.08,659.42,1.70065439]
[1751984825340,1.69874485,660.07,659.43,1.70065439]
[1751984825941,0.98569546,660.19,659.45,1.70065439]
[1751984826139,0.26370529,660.26,659.45,1.70065439]
[1751984827143,0.26370529,660.26,659.44,1.70065439]
[1751984827342,0.26370529,660.26,659.46,1.70065439]
[1751984827743,0.26370529,660.26,659.46,1.69798486]
[1751984827943,1.95829792,660.26,659.45,1.69798486]